Cogmind - Beta 16 @@@ ROGUE MODE // 2025.11.03 @ 22:03:42 Player: rt Result: Destroyed by 43-VRO(R) with Subdweller Machine Gun Performance ------------- Evolutions (0) 0 Regions Visited (3) 600 Robots Destroyed (5) 25 Value Destroyed (102) 102 Prototype IDs (0) 0 Alien Tech Used (0) 0 Bonus (0) 0 TOTAL SCORE: 727 Bonus ------- None Cogmind --------- Core Integrity 0/250 Matter 297/300 Energy 250/250 System Corruption 0% Temperature Cool (0) Movement Core (250) Ox4 Location -10/Subcaves Parts ------- > --- POWER (1) -------- Ion Engine > --- PROPULSION (2) --- (None) > --- UTILITY (2) ------ Small Storage Unit > --- WEAPON (2) ------- Medium Laser Mining Laser > --- INVENTORY (8) ---- Light Ion Engine Experimental Sensor Array Improved Terrain Scanner Light Armor Plating Medium Laser Assault Rifle Rocket Launcher Peak State ------------ > --- POWER ------------ Ion Engine > --- PROPULSION ------- Aluminum Leg Aluminum Leg > --- UTILITY ---------- Small Storage Unit Seismic Detector > --- WEAPON ----------- Medium Laser Medium Laser > --- INVENTORY -------- Light Ion Engine Light Treads Light Treads Wheel Improved Terrain Scanner Assault Rifle Assault Rifle Mining Laser [Rating: 8] Favorites ----------- Power Ion Engine Engine Ion Engine Propulsion Aluminum Leg Leg Aluminum Leg Utility Small Storage Unit Device Seismic Detector Storage Small Storage Unit Weapon Medium Laser Energy Gun Medium Laser Ballistic Gun Assault Rifle Special Weapon Mining Laser Build | -11 -10 -10 -10 ------- Run | Yrd Mat Min Sub Slots Evolved . | . . . . Power . | . . . . Propulsion . | . . . . Utility . | . . . . Weapon . | . . . . Parts Attached 11 | 7 1 2 1 Power 1 | 1 . . . Engine 1 | 1 . . . Core . | . . . . Reactor . | . . . . Propulsion 4 | 2 . 2 . Treads . | . . . . Leg 4 | 2 . 2 . Wheel . | . . . . Hover . | . . . . Flight . | . . . . Utility 2 | 2 . . . Device 1 | 1 . . . Storage 1 | 1 . . . Processor . | . . . . Hackware . | . . . . Protection . | . . . . Artifact . | . . . . Weapon 4 | 2 1 . 1 Energy Gun 2 | 2 . . . Energy Cannon . | . . . . Ballistic Gun 1 | . 1 . . Ballistic Cannon . | . . . . Launcher . | . . . . Special Weapon 1 | . . . 1 Impact Weapon . | . . . . Slashing Weapon . | . . . . Piercing Weapon . | . . . . Special Melee Weapon . | . . . . Unidentified Prototypes . | . . . . Parts Lost 4 | . . . 4 Power . | . . . . Propulsion 2 | . . . 2 Utility 1 | . . . 1 Weapon 1 | . . . 1 Highest Loss Streak 2 | . . . 2 To Critical Strikes . | . . . . Average Backups 7 | 4 7 8 7 Power . | . 1 1 1 Propulsion 1 | 2 2 1 . Utility 2 | . 1 2 3 Weapon 3 | 1 2 3 3 Tool/Special . | . . . . Unused Backups 9 | . 1 2 6 Power 1 | . . . 1 Propulsion 3 | . 1 2 . Utility 3 | . . . 3 Weapon 2 | . . . 2 Tool/Special . | . . . . Average Slot Usage (%) 97 | . 100 100 89 Engine 14 | . 14 14 14 Leg 27 | . 28 28 27 Device 12 | . 14 14 9 Storage 14 | . 14 14 14 Energy Gun 14 | . 16 14 14 Ballistic Gun 12 | . 11 14 8 Peak Build Rating 8 | 7 8 8 8 Average Rating 7 | 5 7 7 7 On Entrance 5 | . 7 8 8 Avg Prop Armor Cover (%) . | . . . . Naked Turns . | . . . . Heaviest Build 15 | 15 15 15 15 Greatest Support 20 | 20 20 20 20 Greatest Overweight (x) 1 | . . . 1 Average Overweight (x) . | . . . . Largest Inventory Capacity 8 | 8 8 8 8 Average Capacity 7 | 7 8 8 8 Most Carried 8 | 8 8 8 8 Average Carried 7 | 5 7 7 7 Final Capacity 8 | 8 8 8 8 Final Carried 8 | 7 8 8 7 Class Distribution -------------------- 100% | Mutant Dominant Class ---------------- Mutant | -10/Materials Mutant | -10/Mines Mutant | -10/Subcaves Resources | -11 -10 -10 -10 ----------- Run | Yrd Mat Min Sub Matter Collected 308 | 270 . 38 . Remotely . | . . . . Salvage Created 155 | 75 . 80 . Parts 11 | 7 . 4 . Haulers Intercepted . | . . . . Recyclers Shooed 1 | 1 . . . Parts Field Recycled . | . . . . Retrieved Matter . | . . . . Parts Self-Destructed 4 | . . . 4 Prevented . | . . . . Parts Restored . | . . . . Kills | -11 -10 -10 -10 ------- Run | Yrd Mat Min Sub Combat Hostiles Destroyed 2 | . . 2 . Guns 2 | . . 2 . Classes Destroyed 2 | 1 . 1 . Tunneler 3 | 3 . . . Grunt 2 | . . 2 . Best Kill Streak 2 | 2 . 2 . Combat Bots Only 2 | . . 2 . Max Kills in Single Turn 1 | 1 . 1 . Gunslinging . | . . . . Exploded . | . . . . Melee . | . . . . Uniques/NPCs Destroyed . | . . . . Combat | -11 -10 -10 -10 -------- Run | Yrd Mat Min Sub Hostile Shots Fired 58 | . 1 15 42 Missed 19 | . . 5 14 Hits 39 | . 1 10 28 Projectile 39 | . 1 10 28 Damage Taken 736 | . 12 131 593 Core 263 | . . 40 223 Absorbed by Shields . | . . . . Core Remaining (%) 100 | 100 . . . Volleys Fired 19 | 9 1 5 4 Largest 2 | 2 2 2 2 Hottest 150 | 100 70 70 150 Shots Fired 38 | 18 2 10 8 Gun 35 | 18 2 10 5 Cannon . | . . . . Launcher . | . . . . Special 3 | . . . 3 Kinetic 7 | . 1 5 1 Thermal 31 | 18 1 5 7 Explosive . | . . . . Electromagnetic . | . . . . Robot Hit Streak 10 | 10 . 3 3 Robot Miss Streak 2 | 1 2 1 . Penetration Max . | . . . . Secondary Targets 1 | . . 1 . Max Gunslinging Chain 1 | . . 1 . Shots Hit Robots 22 | 13 . 7 2 Core Hits 10 | 4 . 5 1 Critical Kills . | . . . . Critical Parts Destroyed . | . . . . Critical Strikes 1 | 1 . . . Burn 1 | 1 . . . Melee Attacks . | . . . . Impact . | . . . . Slashing . | . . . . Piercing . | . . . . Sneak Attacks . | . . . . Combat Hostiles . | . . . . Follow-up Attacks . | . . . . Damage Inflicted 304 | 166 . 113 25 Guns 304 | 166 . 113 25 Cannons . | . . . . Explosions . | . . . . Melee . | . . . . Ramming . | . . . . Kinetic 76 | . . 64 12 Thermal 228 | 166 . 49 13 Explosive . | . . . . Electromagnetic . | . . . . Impact . | . . . . Slashing . | . . . . Piercing . | . . . . Highest Corruption . | . . . . Average Corruption . | . . . . Corruption Purged . | . . . . Corruption Blocked . | . . . . Overload Shots . | . . . . Overflow Damage . | . . . . Projectiles . | . . . . Explosions . | . . . . Melee . | . . . . Knockbacks . | . . . . Impact . | . . . . Kinetic . | . . . . Secondary . | . . . . Self-Inflicted Damage . | . . . . Shots . | . . . . Rammed . | . . . . Targets Rammed . | . . . . Kicked . | . . . . Crushed . | . . . . Highest Temperature 138 | 138 9 102 . Average Temperature 54 | 53 6 62 . Received Heat Transfer 189 | . 6 75 108 Siege Activations . | . . . . Martial Activations . | . . . . Shielding Activations . | . . . . Robots Disrupted . | . . . . Combat Hostiles . | . . . . Robots Corrupted . | . . . . Combat Hostiles . | . . . . Parts Fried . | . . . . Impact Corruptions . | . . . . Robots Melted . | . . . . Combat Hostiles . | . . . . Parts Melted 2 | 2 . . . Heat Transferred 740 | 555 . 148 37 Parts Sabotaged . | . . . . Parts Stolen . | . . . . Parts Stripped . | . . . . Power Chain Reactions . | . . . . Alert | -11 -10 -10 -10 ------- Run | Yrd Mat Min Sub Maximum Alert Level . | . . . . Low Security (%) 100 | 100 100 100 . Level 1 . | . . . . Level 2 . | . . . . Level 3 . | . . . . Level 4 . | . . . . Level 5 . | . . . . High Security . | . . . . Max Security . | . . . . Peak Influence 40 | 10 . 40 . Initial . | . . . . Average 4 | 1 . 6 . Influence Increases 95 | 15 . 80 . Destroy 0b10 Robot/C 40 | . . 40 . Destroy 0b10 Robot/NC 15 | 15 . . . Destroy Leader 10 | . . 10 . Lose Combat Pursuer 30 | . . 30 . Influence Decreases 95 | 15 . 80 . Time Decay 95 | 15 . 80 . Squads Dispatched . | . . . . Investigation . | . . . . Extermination . | . . . . Reinforcement . | . . . . Assault . | . . . . Garrison . | . . . . Intercept . | . . . . Searches Triggered . | . . . . Construction Impeded . | . . . . Haulers Reinforced . | . . . . Active Scanning Responses . | . . . . Cargo Convoy Interrupts . | . . . . Stealth | -11 -10 -10 -10 --------- Run | Yrd Mat Min Sub Distress Signals . | . . . . Communications Jammed . | . . . . Distress Signals . | . . . . Times Spotted 14 | . 3 4 7 Peak Tracking Total 5 | . 3 2 5 Tactical Retreats 1 | . . 1 . Traps | -11 -10 -10 -10 ------- Run | Yrd Mat Min Sub Traps Triggered . | . . . . Indirectly . | . . . . Trap Hack Attempts . | . . . . Triggered . | . . . . Disarmed . | . . . . Reprogrammed . | . . . . Reused . | . . . . Traps Extracted . | . . . . Installed . | . . . . Triggered . | . . . . Machines | -11 -10 -10 -10 ---------- Run | Yrd Mat Min Sub Machines Disabled . | . . . . Max in Single Turn . | . . . . Machines Repaired . | . . . . Machines Dismantled . | . . . . Machines Sabotaged . | . . . . Overloaded Fab Kills . | . . . . Hacking | -11 -10 -10 -10 --------- Run | Yrd Mat Min Sub Machines Accessed . | . . . . Terminals . | . . . . Fabricators . | . . . . Repair Stations . | . . . . Recycling Units . | . . . . Scanalyzers . | . . . . Garrison Access . | . . . . Total Hacks . | . . . . Successful . | . . . . Failed . | . . . . Catastrophic . | . . . . Database Lockouts . | . . . . Manual . | . . . . Terminals . | . . . . Fabricators . | . . . . Repair Stations . | . . . . Recycling Units . | . . . . Scanalyzers . | . . . . Garrison Access . | . . . . Terminal Hacks . | . . . . Fabricator Hacks . | . . . . Repair Station Hacks . | . . . . Recycling Unit Hacks . | . . . . Scanalyzer . | . . . . Garrison Access Hacks . | . . . . Unauthorized Hacks . | . . . . Terminals . | . . . . Fabricators . | . . . . Repair Stations . | . . . . Recycling Units . | . . . . Scanalyzers . | . . . . Garrison Access . | . . . . Data Cores Recovered . | . . . . Used . | . . . . Hacking Detections . | . . . . Full Trace Events . | . . . . Feedback Events . | . . . . Feedback Blocked . | . . . . Robot Schematics Acquired . | . . . . Robots Built . | . . . . Authchips . | . . . . Time . | . . . . Total Robot Build Rating . | . . . . Part Schematics Acquired . | . . . . Parts Built . | . . . . Authchips . | . . . . Time . | . . . . Total Part Build Rating . | . . . . Part Studies Acquired . | . . . . Parts Repaired . | . . . . Time . | . . . . Parts Recycled . | . . . . Recycled Matter . | . . . . Retrieved Matter . | . . . . Retrieved Components . | . . . . Parts Scanalyzed . | . . . . Part Schematics Acquired . | . . . . Parts Damaged . | . . . . Bothacking | -11 -10 -10 -10 ------------ Run | Yrd Mat Min Sub Used RIF Installer . | . . . . Robots Hacked . | . . . . Non-combat . | . . . . Combat . | . . . . Robot Hacks Applied . | . . . . Relay Couplers Released . | . . . . Fabnet Peak Effective % . | . . . . Robots Rewired . | . . . . Allies Hacked . | . . . . Hacks Repelled . | . . . . Allies | -11 -10 -10 -10 -------- Run | Yrd Mat Min Sub Total Allies . | . . . . Largest Group . | . . . . Highest-Rated Group . | . . . . Highest-Rated Ally . | . . . . Total Orders . | . . . . Ally Attacks . | . . . . Total Damage . | . . . . Kills . | . . . . Allies Corrupted . | . . . . Allies Melted . | . . . . Intel | -11 -10 -10 -10 ------- Run | Yrd Mat Min Sub Active Infowar (turns) 799 | 23 169 467 140 Seismic 799 | 23 169 467 140 Robot Analysis Total . | . . . . Derelict Logs Recovered 2 | . . 2 . Drone Launches . | . . . . Drone Recoveries . | . . . . Exploration | -11 -10 -10 -10 ------------- Run | Yrd Mat Min Sub Turns Passed 992 | 141 169 467 215 Spaces Moved 655 | 76 84 339 156 Core 13 | 13 . . . Treads . | . . . . Legs 642 | 63 84 339 156 Wheels . | . . . . Hover . | . . . . Flight . | . . . . Fastest Speed 50 | 50 120 120 120 Average Speed 118 | 108 120 120 120 Slowest Speed 190 | 120 120 120 190 Overloaded Moves . | . . . . Propulsion Burnouts . | . . . . Robots Hopped . | . . . . Potential Cave-ins . | . . . . Cave-ins Triggered . | . . . . Exploration Rate (%) 23 | 4 19 57 15 Regions Visited 3 Branch Regions 2 Pre-discovered Areas 1 | . . . 1 Known Exits Taken . | . . . . Unknown Exits Taken 3 | 1 1 1 . Scrap Searched . | . . . . Spaces Dug . | . . . . Terrain Destroyed . | . . . . Melee . | . . . . Projectile . | . . . . AOE . | . . . . Terrain Rammed . | . . . . Walls Destroyed . | . . . . Machines Disabled . | . . . . Actions | -11 -10 -10 -10 --------- Run | Yrd Mat Min Sub Total 827 | 117 150 391 169 Wait 122 | 12 62 40 8 Move 652 | 75 83 338 156 Hop . | . . . . Pick Up 18 | 14 2 2 . Fast Attach . | . . . . Attach 8 | 7 . . 1 Detach . | . . . . Swap 3 | . 1 2 . Drop 5 | . 1 4 . Fire 19 | 9 1 5 4 Melee . | . . . . Ram . | . . . . Kick . | . . . . Crush . | . . . . Escape Stasis . | . . . . Rewire . | . . . . Trap . | . . . . Miscellaneous . | . . . . Route ------- -11/Scrapyard -10/Materials (discovered 2 exits: [*Min x2]) -10/Mines -10/Subcaves History --------- Turn | Location | Event 10 | -11/Scrapyard | Discovered new exit (range 15) 142 | -11/Scrapyard | Entered Materials 153 | -10/Materials | Discovered new exit (range 16) 293 | -10/Materials | Discovered new exit (range 16) 311 | -10/Materials | Build established: Mutant 311 | -10/Materials | Entered Mines 321 | -10/Mines | Met a Derelict bent on vengeance 393 | -10/Mines | Learned Materials garrison access intel 442 | -10/Mines | A weapon hastily lodged in a ceiling crevice suddenly fell to the ground 531 | -10/Mines | Found a damaged Exp. Sensor Array with a note attached 557 | -10/Mines | Found Prototype Device 631 | -10/Mines | Received a Rocket Launcher from a helpful Derelict 736 | -10/Mines | Discovered new exit (range 6) 778 | -10/Mines | Entered Subcaves 813 | -10/Subcaves | Learned location of Zion (-7) 813 | -10/Subcaves | Met a Zionite searching for "candidates" 902 | -10/Subcaves | A Subdweller sparked back to life 902 | -10/Subcaves | A Subdweller sparked back to life 902 | -10/Subcaves | A Subdweller sparked back to life 923 | -10/Subcaves | Core integrity fell below 50% 960 | -10/Subcaves | Shifting Twisted Machinery released Sub. Monowheel 988 | -10/Subcaves | Core integrity fell below 20% 993 | -10/Subcaves | Destroyed by 43-VRO(R) with Subdweller Machine Gun Last Messages --------------- 00631_ 0B-AZW(g): "Would you like a rocket launcher? I know I would if I were you, so I'm going to lend you mine." 00631_ 0B-AZW(g) slips back into the shadows. 00633_ Dropped Lgt. Treads. 00633_ Acquired Rocket Launcher. 00736_ EXIT=FOUND LOCATION=UNKNOWN AMBIENT_HEAT=-10 GOAL=ESCAPE 00782_ QI-K96(z): "She is not going to be happy we haven't found any suitable candidates yet." 00813_ QI-K96(z): "Hey you! It's really dangerous down here, I feel that you could die at any moment. For your health and safety might I suggest a trip to Zion?" World map updated: -7/Zion. 00902_ AJ-41F(R) creaks and sparks as it begins to move. 00902_ VY-939(R) creaks and sparks as it begins to move. 00902_ LL-RNQ(R) creaks and sparks as it begins to move. 00909_ Assault Rifle destroyed. 00918_ Seismic Detector destroyed. Sub. Monowheel falls loose from the Twisted Machinery. 00987_ 6N-U2C(u) tweaks Twisted Machinery. 00989_ Aluminum Leg destroyed. Map ----- +----------------------------------------------------+ | | | | | | | | | ?????????????????????????????????????????????????? | | ?????????????????????????????????????????????????? | | ?????????????????????????????????????????????????? | | ?????????????????????????????????????????????????? | | ?????????????????????????????????????????????????? | | ?????????????????????????????????????????????????? | | ?????????????????????????????????????????????????? | | ?????????????????????????????????????????????????? | | ?????????????????????????????????????????????????? | | ?????????????????????????????????????????????????? | | ?????????????????????????????????????????????????? | | ?????????????????????????????????????????????????? | | ?????????????????????????????????????????????????? | | ?????????????????????????????????????????????????? | | ?????????????????????????????????????????????????? | | ????????????##?????????????????####????####??????? | | ????????????# ???????????????# ##???# ####?### | | ???????????## ?????????????# ###?# ### | | ???????????R ????????#### ### | | ?????????? R ???#### ### "##" # | | ?????????????# ##" R"=## " " ## | | ????????????????# @ RR"" " ### | | ????????????????# """"RR"""" ## ##### | | ????????????????# ## """"""u" ####???# # | | ????????????????????# " ""##"" #??????#### | | ????????????????????# " "####" ????????##### | | ????????????????????# "###??#"" #???????????? | | ????????????????????# ###????# """##???????????? | | ????????????????????## ???????## "##????????????? | | ????????????????????? ????????# "#?????????????? | | ????????????????????? ???????? ""?????????????? | | ???????????????????? ?????????# ???????????????? | | ???????????????????? #?????????? ???????????????? | | ????????????????????????????????? ???????????????? | | ????????????????????????????????? ???????????????? | | ?????????????????????????????????????????????????? | | ?????????????????????????????????????????????????? | | ?????????????????????????????????????????????????? | | ?????????????????????????????????????????????????? | | ?????????????????????????????????????????????????? | | ?????????????????????????????????????????????????? | | ?????????????????????????????????????????????????? | | ?????????????????????????????????????????????????? | | ?????????????????????????????????????????????????? | | ?????????????????????????????????????????????????? | | ?????????????????????????????????????????????????? | +----------------------------------------------------+ Best States ------------- Heat Dissipation 25 Energy Generation 10 Energy Capacity 250 Matter Stores 300 Matter Capacity 300 Sight Range 16 Terrain Scan Density 10 Evasion (%) 55 Item Schematics ----------------- None Robot Schematics ------------------ None Fabricated ------------ Nothing Repaired ---------- Nothing Studied --------- None Alien Tech Used ----------------- None Achievements -------------- None Challenges ------------ None Game ------ Seed ScanTerrainWall Manual? 0 Play Time 00:10:25 Cumulative 11.8 hours Start 2025.11.03 @ 21:47:34 End 2025.11.03 @ 22:03:42 Sessions 1 Manual Loads 0 Difficulty Rogue Special Mode None Game No. 38 Rogue 38 Adventurer 0 Explorer 0 Win Type - Total 0 Types 0/0/0/0/0/0/0/0/0/0 Lore% 10 Gallery% 16 Achievement% 14 Wizard Run 0 Options --------- Layout 1 ASCII 0 Keyboard 0 Movement Numpad Keybinds 0 Fullscreen 1 Font 32/SmallcapsGlow Map View 130x35 Zoom Use 0% Tactical HUD 1 Map Filters NONE Filters NONE Steam 1 RUN: 183f34de-3b37-4e7d-af94-a251e2bb6936